fUST/lending_fUST_20250713
["ID","MTS","AMOUNT","RATE_DAILY","PERIOD"]
[371702361,1752394271855,-693.44,0.00020547,2]
[371702362,1752394271866,-2792.31,0.00020547,2]
[371702363,1752394271876,-460.0,0.00020547,2]
[371702364,1752394271886,-844.75,0.00020547,2]
[371702365,1752394271897,-923.89,0.00020547,2]
[371702366,1752394271907,-699.1,0.00020547,2]
[371702367,1752394271916,-514.93,0.00020547,2]
[371702368,1752394271927,-518.68,0.00020547,2]
[371702369,1752394271937,-2437.23,0.00020547,2]
[371702370,1752394271948,-705.01,0.00020547,2]
[371702371,1752394271957,-901.04,0.00020547,2]
[371702372,1752394271967,-460.0,0.00020547,2]
[371702373,1752394271978,-253.7,0.00020547,2]
[371702374,1752394271988,-1505.6,0.00020547,2]
[371702375,1752394271998,-2603.03,0.00020547,2]
[371702376,1752394272007,-6291.67,0.00020547,2]
[371702377,1752394272018,-5734.9,0.00020547,2]
[371702378,1752394272027,-1770.54,0.00020547,2]
[371702379,1752394272038,-1012.86,0.00020547,2]
[371702380,1752394272048,-489.01,0.00020547,2]
[371702381,1752394272059,-4310.84,0.00020547,2]
[371702382,1752394272070,-533.54,0.00020547,2]
[371702383,1752394272084,-2800.25,0.00020547,2]
[371702384,1752394272094,-862.57,0.00020547,2]
[371702385,1752394272104,-1059.69,0.00020547,2]
[371702386,1752394272113,-684.2,0.00020547,2]
[371702387,1752394272125,-479.16,0.00020547,2]
[371702388,1752394272135,-5816.14,0.00020547,2]
[371702389,1752394272145,-1513.32,0.00020547,2]
[371702390,1752394272155,-1859.64,0.00020547,2]
[371702391,1752394272165,-3577.76,0.00020547,2]
[371702392,1752394272175,-897.76,0.00020547,2]
[371702393,1752394272184,-460.0,0.00020547,2]
[371702394,1752394272194,-1406.11,0.00020547,2]
[371702395,1752394272203,-168.0,0.00020568,2]
[371702396,1752394272212,-2022.41,0.00020588,2]
[371702397,1752394272222,-502.90788406,0.00020605,2]
[371702398,1752394272231,-10757.49686302,0.00020624,3]
[371702399,1752394272241,-336.0,0.00020654,2]
[371702400,1752394272251,-151.0,0.00020659,2]
[371702401,1752394272261,-223.95,0.0002066,2]
[371702402,1752394272270,-151.0,0.00020682,2]
[371702403,1752394272280,-151.0,0.00020682,2]
[371702404,1752394272290,-151.0,0.00020682,2]
[371702405,1752394272299,-5000.0,0.00020696,2]
[371702406,1752394272308,-151.0,0.000207,2]
[371702407,1752394272317,-295.239615,0.000207,2]
[371702408,1752394272327,-295.239615,0.000207,2]
[371702409,1752394272336,-197.32,0.00020707,2]
[371702410,1752394272345,-168.0,0.00020725,2]
[371702411,1752394272355,-214.29528141,0.00020726,2]
[371702412,1752394272365,-4000.0,0.00020726,2]
[371702413,1752394272375,-168.0,0.00020763,2]
[371702414,1752394272384,-151.484593,0.00020771,2]
[371702415,1752394272393,-5000.0,0.00020788,2]
[371702416,1752394272403,-168.0,0.00020815,2]
[371702417,1752394272413,-270.349977,0.00020821,2]
[371702418,1752394272422,-446.042417,0.00020821,2]
[371702419,1752394272431,-446.042417,0.00020821,2]
[371702420,1752394272441,-460.0,0.00020821,2]
[371702421,1752394272450,-618.68,0.00020821,2]
[371702422,1752394272460,-1000.01,0.00020821,2]
[371702423,1752394272470,-460.0,0.00020821,2]
[371702424,1752394272479,-715.71,0.00020821,2]
[371702425,1752394272488,-460.0,0.00020821,2]
[371702426,1752394272498,-504.95,0.00020821,2]
[371702427,1752394272508,-812.41,0.00020821,2]
[371702428,1752394272517,-403.75570465,0.00020821,2]
[371702429,1752394272527,-460.0,0.00020821,2]
[371702430,1752394272536,-1679.05,0.00020821,2]
[371702431,1752394272547,-733.36,0.00020821,2]
[371702432,1752394272556,-479.16,0.00020821,2]
[371702433,1752394272566,-584.3,0.00020821,2]
[371702434,1752394272576,-506.57,0.00020821,2]
[371702435,1752394272586,-893.03,0.00020821,2]
[371702436,1752394272598,-695.2,0.00020821,2]
[371702437,1752394272608,-693.44,0.00020821,2]
[371702438,1752394272621,-2792.31,0.00020821,2]
[371702439,1752394272631,-460.0,0.00020821,2]
[371702440,1752394272640,-844.75,0.00020821,2]
[371702441,1752394272649,-923.89,0.00020821,2]
[371702442,1752394272658,-699.1,0.00020821,2]
[371702443,1752394272668,-514.93,0.00020821,2]
[371702444,1752394272678,-518.68,0.00020821,2]
[371702445,1752394272687,-2437.23,0.00020821,2]
[371702446,1752394272697,-705.01,0.00020821,2]
[371702447,1752394272707,-901.04,0.00020821,2]
[371702448,1752394272717,-460.0,0.00020821,2]
[371702449,1752394272726,-1505.6,0.00020821,2]
[371702450,1752394272736,-2603.03,0.00020821,2]
[371702451,1752394272745,-6291.67,0.00020821,2]
[371702452,1752394272755,-5734.9,0.00020821,2]
[371702453,1752394272769,-1770.54,0.00020821,2]
[371702454,1752394272779,-1012.86,0.00020821,2]
[371702455,1752394272789,-489.01,0.00020821,2]
[371702456,1752394272799,-4310.84,0.00020821,2]
[371702457,1752394272808,-533.54,0.00020821,2]
[371702458,1752394272818,-2800.25,0.00020821,2]
[371702459,1752394272828,-862.57,0.00020821,2]
[371702460,1752394272838,-1059.69,0.00020821,2]
[371702461,1752394272847,-684.2,0.00020821,2]
[371702462,1752394272856,-479.16,0.00020821,2]
[371702463,1752394272866,-5816.14,0.00020821,2]
[371702464,1752394272876,-1513.32,0.00020821,2]
[371702465,1752394272886,-1859.64,0.00020821,2]
[371702466,1752394272895,-3577.76,0.00020821,2]
[371702467,1752394272905,-460.0,0.00020821,2]
[371702468,1752394272915,-897.76,0.00020821,2]
[371702469,1752394272926,-1406.11,0.00020821,2]
[371702470,1752394272935,-385.0,0.00020845,2]
[371702471,1752394272945,-517.29046175,0.00020863,2]
[371702472,1752394272955,-154.849508,0.00020924,2]
[371702473,1752394272965,-10757.49686302,0.00020934,4]
[371702474,1752394272975,-151.315623,0.00020958,2]
[371702475,1752394272984,-151.450001,0.00020958,2]
[371702476,1752394272994,-151.0,0.00020958,2]
[371702477,1752394273003,-151.0,0.00020958,2]
[371702478,1752394273014,-191.014586,0.00020958,2]
[371702479,1752394273024,-5373.0,0.00020992,2]
[371702480,1752394273033,-168.0,0.00021052,2]
[371702481,1752394273043,-1800.0,0.00021064,2]
[371702482,1752394273053,-618.68,0.00021095,2]
[371702483,1752394273063,-1000.01,0.00021095,2]
[371702484,1752394273074,-460.0,0.00021095,2]
[371702485,1752394273085,-715.71,0.00021095,2]
[371702486,1752394273096,-459.24231215,0.00021095,2]
[371702487,1752394273106,-504.95,0.00021095,2]
[371702488,1752394273116,-812.41,0.00021095,2]
[371702489,1752394273126,-460.0,0.00021095,2]
[371702490,1752394273137,-1679.05,0.00021095,2]
[371702491,1752394273147,-733.36,0.00021095,2]
[371702492,1752394273158,-479.16,0.00021095,2]
[371702493,1752394273168,-584.3,0.00021095,2]
[371702494,1752394273178,-506.57,0.00021095,2]
[371702495,1752394273190,-893.03,0.00021095,2]
[371702496,1752394273201,-695.2,0.00021095,2]
[371702497,1752394273211,-693.44,0.00021095,2]
[371702498,1752394273225,-2792.31,0.00021095,2]
[371702499,1752394273236,-460.0,0.00021095,2]
[371702500,1752394273247,-844.75,0.00021095,2]
[371702501,1752394273258,-923.89,0.00021095,2]
[371702502,1752394273268,-699.1,0.00021095,2]
[371702503,1752394273279,-514.93,0.00021095,2]
[371702504,1752394273289,-518.68,0.00021095,2]
[371702505,1752394273301,-2437.23,0.00021095,2]
[371702506,1752394273314,-705.01,0.00021095,2]
[371702507,1752394273324,-901.04,0.00021095,2]
[371702508,1752394273334,-460.0,0.00021095,2]
[371702509,1752394273343,-1505.6,0.00021095,2]
[371702510,1752394273353,-2603.03,0.00021095,2]
[371702511,1752394273363,-6291.67,0.00021095,2]
[371702512,1752394273372,-5734.9,0.00021095,2]
[371702513,1752394273382,-1770.54,0.00021095,2]
[371702514,1752394273391,-1012.86,0.00021095,2]
[371702515,1752394273401,-489.01,0.00021095,2]
[371702516,1752394273411,-4310.84,0.00021095,2]
[371702517,1752394273422,-533.54,0.00021095,2]
[371702518,1752394273431,-2800.25,0.00021095,2]
[371702519,1752394273441,-862.57,0.00021095,2]
[371702520,1752394273450,-1059.69,0.00021095,2]
[371702521,1752394273460,-684.2,0.00021095,2]
[371702522,1752394273469,-479.16,0.00021095,2]
[371702523,1752394273479,-5816.14,0.00021095,2]
[371702524,1752394273489,-1513.32,0.00021095,2]
[371702525,1752394273498,-1859.64,0.00021095,2]
[371702526,1752394273508,-3577.76,0.00021095,2]
[371702527,1752394273518,-460.0,0.00021095,2]
[371702528,1752394273528,-897.76,0.00021095,2]
[371702529,1752394273538,-1406.11,0.00021095,2]
[371702530,1752394273547,-168.0,0.00021114,2]
[371702531,1752394273558,-160.0,0.00021176,3]
[371702532,1752394273567,-151.0,0.00021201,2]
[371702533,1752394273577,-151.0,0.0002121,2]
[371702534,1752394273703,-10757.49686302,0.00021245,4]
[371702535,1752394273713,-151.0,0.00021245,2]
[371702536,1752394273723,-223.0315306,0.00021299,2]
[371702537,1752394273732,-823.0,0.00021317,2]
[371702538,1752394273741,-151.0,0.00021324,2]
[371702539,1752394273751,-168.0,0.00021332,2]
[371702540,1752394273761,-154.849508,0.00021366,2]
[371702541,1752394273771,-618.68,0.00021369,2]
[371702542,1752394273780,-1000.01,0.00021369,2]
[371702543,1752394273790,-460.0,0.00021369,2]
[371702544,1752394273800,-151.0,0.00021369,2]
[371702545,1752394273808,-715.71,0.00021369,2]
[371702546,1752394273817,-812.41,0.00021369,2]
[371702547,1752394273827,-317.81972919,0.00021369,2]
[371702548,1752394273837,-1679.05,0.00021369,2]
[371702549,1752394273849,-733.36,0.00021369,2]
[371702550,1752394273860,-479.16,0.00021369,2]
[371702551,1752394273869,-584.3,0.00021369,2]
[371702552,1752394273879,-151.0,0.00021369,2]
[371702553,1752394273889,-151.0,0.00021369,2]
[371702554,1752394273899,-506.57,0.00021369,2]
[371702555,1752394273909,-893.03,0.00021369,2]
[371702556,1752394273919,-695.2,0.00021369,2]
[371702557,1752394273929,-693.44,0.00021369,2]
[371702558,1752394273938,-2792.31,0.00021369,2]
[371702559,1752394273948,-522.44220023,0.00021369,2]
[371702560,1752394273959,-844.75,0.00021369,2]
[371702561,1752394273975,-923.89,0.00021369,2]
[371702562,1752394273998,-699.1,0.00021369,2]
[371702563,1752394274008,-514.93,0.00021369,2]
[371702564,1752394274018,-518.68,0.00021369,2]
[371702565,1752394274027,-2437.23,0.00021369,2]
[371702566,1752394274037,-705.01,0.00021369,2]
[371702567,1752394274047,-901.04,0.00021369,2]
[371702568,1752394274058,-460.0,0.00021369,2]
[371702569,1752394274067,-1505.6,0.00021369,2]
[371702570,1752394274079,-2603.03,0.00021369,2]
[371702571,1752394274089,-6291.67,0.00021369,2]
[371702572,1752394274099,-5734.9,0.00021369,2]
[371702573,1752394274119,-1770.54,0.00021369,2]
[371702574,1752394274132,-1012.86,0.00021369,2]
[371702575,1752394274142,-489.01,0.00021369,2]
[371702576,1752394274155,-4310.84,0.00021369,2]
[371702577,1752394274166,-533.54,0.00021369,2]
[371702578,1752394274176,-2800.25,0.00021369,2]
[371702579,1752394274186,-862.57,0.00021369,2]
[371702580,1752394274196,-1059.69,0.00021369,2]
[371702581,1752394274206,-684.2,0.00021369,2]
[371702582,1752394274216,-479.16,0.00021369,2]
[371702583,1752394274225,-5816.14,0.00021369,2]
[371702584,1752394274235,-1513.32,0.00021369,2]
[371702585,1752394274245,-1859.64,0.00021369,2]
[371702586,1752394274255,-3577.76,0.00021369,2]
[371702587,1752394274265,-578.86828736,0.00021369,2]
[371702588,1752394274275,-897.76,0.00021369,2]
[371702589,1752394274284,-1406.11,0.00021369,2]
[371702590,1752394274294,-160.0,0.00021389,4]
[371702591,1752394274304,-207.875769,0.00021486,2]
[371702592,1752394274314,-207.875769,0.00021486,2]
[371702593,1752394274323,-261.90536,0.00021486,2]
[371702594,1752394274334,-151.0,0.00021486,2]
[371702595,1752394274345,-292.34836,0.00021486,2]
[371702596,1752394274355,-151.0,0.00021498,2]
[371702597,1752394274365,-285.739624,0.00021498,2]
[371702598,1752394274374,-171.008502,0.00021498,2]
[371702599,1752394274384,-152.056827,0.00021498,2]
[371702600,1752394274394,-446.042417,0.00021498,2]
[371702601,1752394274403,-151.0,0.00021498,2]
[371702602,1752394274412,-446.042417,0.00021498,2]
[371702603,1752394274421,-151.0,0.00021498,2]
[371702604,1752394274431,-151.0,0.00021498,2]
[371702605,1752394274440,-295.239615,0.00021498,2]
[371702606,1752394274450,-295.239615,0.00021498,2]
[371702607,1752394274460,-203.293994,0.00021498,2]
[371702608,1752394274470,-203.293994,0.00021498,2]
[371702609,1752394274480,-151.0,0.00021498,2]
[371702610,1752394274490,-151.0,0.00021498,2]
[371702611,1752394274500,-151.0,0.00021498,2]
[371702612,1752394274510,-151.0,0.00021498,2]
[371702613,1752394274520,-151.0,0.00021498,2]
[371702614,1752394274530,-345.848633,0.00021498,2]
[371702615,1752394274540,-345.848633,0.00021498,2]
[371702616,1752394274550,-151.0,0.00021498,2]
[371702617,1752394274559,-379.823599,0.00021498,2]
[371702618,1752394274570,-379.823599,0.00021498,2]
[371702619,1752394274580,-620.74551448,0.000215,4]
[371702620,1752394274591,-230.21,0.00021504,2]
[371702621,1752394274601,-151.0,0.00021538,2]
[371702622,1752394274611,-10757.49686302,0.00021555,5]
[371702623,1752394274621,-5091.95,0.000216,2]
[371702624,1752394274632,-31732.67,0.000216,2]
[371702625,1752394274641,-1450.02,0.000216,2]
[371702626,1752394274651,-160.0,0.00021603,5]
[371702627,1752394274661,-156.3639418,0.00021616,2]
[371702628,1752394274671,-159.1103038,0.00021616,2]
[371702629,1752394274681,-203.0,0.0002162,2]
[371702630,1752394274691,-230.461394,0.00021643,2]
[371702631,1752394274700,-618.68,0.00021643,2]
[371702632,1752394274710,-1000.01,0.00021643,2]
[371702633,1752394274720,-460.0,0.00021643,2]
[371702634,1752394274730,-715.71,0.00021643,2]
[371702635,1752394274744,-812.41,0.00021643,2]
[371702636,1752394274754,-1679.05,0.00021643,2]
[371702637,1752394274764,-733.36,0.00021643,2]
[371702638,1752394274775,-479.16,0.00021643,2]
[371702639,1752394274786,-584.3,0.00021643,2]
[371702640,1752394274798,-506.57,0.00021643,2]
[371702641,1752394274807,-893.03,0.00021643,2]
[371702642,1752394274817,-695.2,0.00021643,2]
[371702643,1752394274827,-693.44,0.00021643,2]
[371702644,1752394274838,-2792.31,0.00021643,2]
[371702645,1752394274848,-844.75,0.00021643,2]
[371702646,1752394274858,-923.89,0.00021643,2]
[371702647,1752394274868,-699.1,0.00021643,2]
[371702648,1752394274879,-514.93,0.00021643,2]
[371702649,1752394274889,-518.68,0.00021643,2]
[371702650,1752394274899,-2437.23,0.00021643,2]
[371702651,1752394274909,-705.01,0.00021643,2]
[371702652,1752394274920,-901.04,0.00021643,2]
[371702653,1752394274930,-460.0,0.00021643,2]
[371702654,1752394274940,-1505.6,0.00021643,2]
[371702655,1752394274950,-2603.03,0.00021643,2]
[371702656,1752394274960,-6291.67,0.00021643,2]
[371702657,1752394274971,-5734.9,0.00021643,2]
[371702658,1752394274980,-1770.54,0.00021643,2]
[371702659,1752394274991,-1012.86,0.00021643,2]
[371702660,1752394275001,-489.01,0.00021643,2]
[371702661,1752394275011,-4310.84,0.00021643,2]
[371702662,1752394275022,-533.54,0.00021643,2]
[371702663,1752394275032,-2800.25,0.00021643,2]
[371702664,1752394275042,-862.57,0.00021643,2]
[371702665,1752394275052,-1059.69,0.00021643,2]
[371702666,1752394275062,-684.2,0.00021643,2]
[371702667,1752394275072,-479.16,0.00021643,2]
[371702668,1752394275085,-5816.14,0.00021643,2]
[371702669,1752394275096,-1513.32,0.00021643,2]
[371702670,1752394275107,-1859.64,0.00021643,2]
[371702671,1752394275118,-3577.76,0.00021643,2]
[371702672,1752394275128,-897.76,0.00021643,2]
[371702673,1752394275138,-1406.11,0.00021643,2]
[371702674,1752394275148,-151.0,0.00021688,2]
[371702675,1752394275159,-156.3639418,0.00021753,2]
[371702676,1752394275168,-180.25957379,0.00021778,2]
[371702677,1752394275178,-2000.0,0.000218,2]
[371702678,1752394275188,-2000.0,0.000218,3]
[371702679,1752394275200,-2000.0,0.000218,4]
[371702680,1752394275210,-151.0,0.00021801,2]
[371702681,1752394275220,-151.0,0.00021801,2]
[371702682,1752394275230,-160.0,0.00021816,6]
[371702683,1752394275240,-1000.0,0.00021843,5]
[371702684,1752394275250,-156.3639418,0.00021863,2]
[371702685,1752394275260,-151.0,0.00021865,2]
[371702686,1752394275271,-10757.49686302,0.00021866,6]
[371702687,1752394275280,-5638.59999998,0.00021898,2]
[371702688,1752394275289,-151.0,0.000219,2]
[371702689,1752394275299,-104761.16295434,0.00021916,2]
[371702690,1752394275309,-295.239615,0.00021916,2]
[371702691,1752394275321,-295.239615,0.00021916,2]
[371702692,1752394275330,-345.848633,0.00021916,2]
[371702693,1752394275341,-345.848633,0.00021916,2]
[371702694,1752394275350,-151.0,0.00021916,2]
[371702695,1752394275360,-379.823599,0.00021916,2]
[371702696,1752394275370,-379.823599,0.00021916,2]
[371702697,1752394275379,-207.875769,0.00021916,2]
[371702698,1752394275389,-207.875769,0.00021916,2]
[371702699,1752394275399,-151.0,0.00021916,2]
[371702700,1752394275409,-151.0,0.00021916,2]
[371702701,1752394275419,-151.0,0.00021916,2]
[371702702,1752394275429,-151.0,0.00021916,2]
[371702703,1752394275439,-446.042417,0.00021917,2]
[371702704,1752394275448,-151.0,0.00021917,2]
[371702705,1752394275458,-446.042417,0.00021917,2]
[371702706,1752394275467,-151.0,0.00021917,2]
[371702707,1752394275479,-203.293994,0.00021917,2]
[371702708,1752394275488,-203.293994,0.00021917,2]
[371702709,1752394275498,-209.778707,0.00021917,2]
[371702710,1752394275508,-153.705584,0.00021917,2]
[371702711,1752394275518,-151.0,0.00021917,2]
[371702712,1752394275527,-151.0,0.00021917,2]
[371702713,1752394275538,-257.670918,0.00021917,2]
[371702714,1752394275547,-797.62,0.00021917,2]
[371702715,1752394275557,-797.62,0.00021917,2]
[371702716,1752394275567,-797.62,0.00021917,2]
[371702717,1752394275577,-797.62,0.00021917,2]
[371702718,1752394275587,-797.62,0.00021917,2]
[371702719,1752394275598,-797.62,0.00021917,2]
[371702720,1752394275608,-797.62,0.00021917,2]
[371702721,1752394275618,-797.62,0.00021917,2]
[371702722,1752394275628,-797.62,0.00021917,2]
[371702723,1752394275639,-797.62,0.00021917,2]
[371702724,1752394275648,-797.62,0.00021917,2]
[371702725,1752394275658,-797.62,0.00021917,2]
[371702726,1752394275668,-797.62,0.00021917,2]
[371702727,1752394275678,-797.62,0.00021917,2]
[371702728,1752394275688,-797.62,0.00021917,2]
[371702729,1752394275698,-797.62,0.00021917,2]
[371702730,1752394275708,-797.62,0.00021917,2]
[371702731,1752394275718,-797.62,0.00021917,2]
[371702732,1752394275728,-797.62,0.00021917,2]
[371702733,1752394275739,-797.62,0.00021917,2]
[371702734,1752394275749,-797.62,0.00021917,2]
[371702735,1752394275758,-618.68,0.00021917,2]
[371702736,1752394275768,-1000.01,0.00021917,2]
[371702737,1752394275779,-715.71,0.00021917,2]
[371702738,1752394275790,-812.41,0.00021917,2]
[371702739,1752394275801,-1679.05,0.00021917,2]
[371702740,1752394275811,-733.36,0.00021917,2]
[371702741,1752394275820,-479.16,0.00021917,2]
[371702742,1752394275830,-584.3,0.00021917,2]
[371702743,1752394275839,-506.57,0.00021917,2]
[371702744,1752394275849,-893.03,0.00021917,2]
[371702745,1752394275859,-695.2,0.00021917,2]
[371702746,1752394275869,-693.44,0.00021917,2]
[371702747,1752394275879,-2792.31,0.00021917,2]
[371702748,1752394275889,-844.75,0.00021917,2]
[371702749,1752394275899,-923.89,0.00021917,2]
[371702750,1752394275908,-699.1,0.00021917,2]
[371702751,1752394275919,-514.93,0.00021917,2]
[371702752,1752394275928,-518.68,0.00021917,2]
[371702753,1752394275939,-2437.23,0.00021917,2]
[371702754,1752394275948,-705.01,0.00021917,2]
[371702755,1752394275959,-901.04,0.00021917,2]
[371702756,1752394275969,-460.0,0.00021917,2]
[371702757,1752394275979,-1505.6,0.00021917,2]
[371702758,1752394275989,-2603.03,0.00021917,2]
[371702759,1752394275999,-6291.67,0.00021917,2]
[371702760,1752394276009,-5734.9,0.00021917,2]
[371702761,1752394276019,-1770.54,0.00021917,2]
[371702762,1752394276029,-1012.86,0.00021917,2]
[371702763,1752394276038,-489.01,0.00021917,2]
[371702764,1752394276048,-4310.84,0.00021917,2]
[371702765,1752394276058,-533.54,0.00021917,2]
[371702766,1752394276068,-2800.25,0.00021917,2]
[371702767,1752394276081,-1059.69,0.00021917,2]
[371702768,1752394276091,-862.57,0.00021917,2]
[371702769,1752394276101,-684.2,0.00021917,2]
[371702770,1752394276111,-479.16,0.00021917,2]
[371702771,1752394276122,-5816.14,0.00021917,2]
[371702772,1752394276134,-1513.32,0.00021917,2]
[371702773,1752394276145,-1859.64,0.00021917,2]
[371702774,1752394276156,-3577.76,0.00021917,2]
[371702775,1752394276168,-897.76,0.00021917,2]
[371702776,1752394276178,-1406.11,0.00021917,2]
[371702777,1752394276187,-153.0,0.00021918,2]
[371702778,1752394276197,-153.0,0.00021918,2]
[371702779,1752394276207,-153.0,0.00021918,2]
[371702780,1752394276217,-153.0,0.00021918,2]
[371702781,1752394276226,-153.0,0.00021918,2]
[371702782,1752394276236,-153.0,0.00021918,2]
[371702783,1752394276249,-153.0,0.00021918,2]
[371702784,1752394276259,-153.0,0.00021918,2]
[371702785,1752394276268,-153.0,0.00021918,2]
[371702786,1752394276278,-153.0,0.00021918,2]
[371702787,1752394276287,-153.0,0.00021918,2]
[371702788,1752394276296,-153.0,0.00021918,2]
[371702789,1752394276306,-153.0,0.00021918,2]
[371702790,1752394276315,-153.0,0.00021918,2]
[371702791,1752394276325,-153.0,0.00021918,2]
[371702792,1752394276335,-153.0,0.00021918,2]
[371702793,1752394276346,-153.0,0.00021918,2]
[371702794,1752394276355,-153.0,0.00021918,2]
[371702795,1752394276366,-153.0,0.00021918,2]
[371702796,1752394276375,-153.0,0.00021918,2]
[371702797,1752394276384,-153.0,0.00021918,2]
[371702798,1752394276393,-153.0,0.00021918,2]
[371702799,1752394276402,-153.0,0.00021918,2]
[371702800,1752394276411,-153.0,0.00021918,2]
[371702801,1752394276421,-153.0,0.00021918,2]
[371702802,1752394276430,-153.0,0.00021918,2]
[371702803,1752394276440,-153.0,0.00021918,2]
[371702804,1752394276449,-153.0,0.00021918,2]
[371702805,1752394276459,-153.0,0.00021918,2]
[371702806,1752394276468,-153.0,0.00021918,2]
[371702807,1752394276478,-153.0,0.00021918,2]
[371702808,1752394276487,-153.0,0.00021918,2]
[371702809,1752394276497,-153.0,0.00021918,2]
[371702810,1752394276506,-153.0,0.00021918,2]
[371702811,1752394276516,-153.0,0.00021918,2]
[371702812,1752394276526,-153.0,0.00021918,2]
[371702813,1752394276535,-153.0,0.00021918,2]
[371702814,1752394276544,-153.0,0.00021918,2]
[371702815,1752394276555,-153.0,0.00021918,2]
[371702816,1752394276564,-153.0,0.00021918,2]
[371702817,1752394276574,-153.0,0.00021918,2]
[371702818,1752394276583,-153.0,0.00021918,2]
[371702819,1752394276593,-153.0,0.00021918,2]
[371702820,1752394276603,-153.0,0.00021918,2]
[371702821,1752394276612,-153.0,0.00021918,2]
[371702822,1752394276621,-153.0,0.00021918,2]
[371702823,1752394276631,-153.0,0.00021918,2]
[371702824,1752394276640,-153.0,0.00021918,2]
[371702825,1752394276649,-153.0,0.00021918,2]
[371702826,1752394276659,-153.0,0.00021918,2]
[371702827,1752394276668,-153.0,0.00021918,2]
[371702828,1752394276677,-153.0,0.00021918,2]
[371702829,1752394276687,-153.0,0.00021918,2]
[371702830,1752394276697,-153.0,0.00021918,2]
[371702831,1752394276706,-153.0,0.00021918,2]
[371702832,1752394276715,-153.0,0.00021918,2]
[371702833,1752394276724,-153.0,0.00021918,2]
[371702834,1752394276734,-153.0,0.00021918,2]
[371702835,1752394276744,-153.0,0.00021918,2]
[371702836,1752394276754,-153.0,0.00021918,2]
[371702837,1752394276763,-153.0,0.00021918,2]
[371702838,1752394276771,-153.0,0.00021918,2]
[371702839,1752394276781,-153.0,0.00021918,2]
[371702840,1752394276790,-153.0,0.00021918,2]
[371702841,1752394276799,-153.0,0.00021918,2]
[371702842,1752394276809,-153.0,0.00021918,2]
[371702843,1752394276818,-153.0,0.00021918,2]
[371702844,1752394276827,-153.0,0.00021918,2]
[371702845,1752394276837,-153.0,0.00021918,2]
[371702846,1752394276847,-153.0,0.00021918,2]
[371702847,1752394276857,-153.0,0.00021918,2]
[371702848,1752394276867,-153.0,0.00021918,2]
[371702849,1752394276877,-153.0,0.00021918,2]
[371702850,1752394276886,-153.0,0.00021918,2]
[371702851,1752394276896,-153.0,0.00021918,2]
[371702852,1752394276905,-153.0,0.00021918,2]
[371702853,1752394276915,-153.0,0.00021918,2]
[371702854,1752394276924,-153.0,0.00021918,2]
[371702855,1752394276934,-153.0,0.00021918,2]
[371702856,1752394276943,-153.0,0.00021918,2]
[371702857,1752394276953,-153.0,0.00021918,2]
[371702858,1752394276963,-153.0,0.00021918,2]
[371702859,1752394276972,-153.0,0.00021918,2]
[371702860,1752394276982,-153.0,0.00021918,2]